[Event "*** Titled Tuesday 3|2 Blitz (Early)"]
[Site "Chess.com"]
[Date "2016.12.06"]
[Round "9"]
[White "stefanodinn"]
[Black "ftorodent"]
[Result "0-1"]
[WhiteElo "2189"]
[BlackElo "2498"]
[TimeControl "180+2"]
[EndTime "13:00:29 PST"]
[Termination "ftorodent won on time"]

1. e4 {[%clk 0:03:02]} 1... e6 {[%clk 0:03:00.3]} 2. d4 {[%clk 0:03:02.2]} 2...
d5 {[%clk 0:03:00.9]} 3. Nd2 {[%clk 0:03:02.4]} 3... Be7 {[%clk 0:03:00]} 4. c3
{[%clk 0:02:56.5]} 4... c5 {[%clk 0:02:57.5]} 5. exd5 {[%clk 0:02:53.4]} 5...
Qxd5 {[%clk 0:02:56.1]} 6. Ngf3 {[%clk 0:02:43.1]} 6... cxd4 {[%clk 0:02:55.8]}
7. Nxd4 {[%clk 0:02:42]} 7... Nf6 {[%clk 0:02:55.5]} 8. Bb5+ {[%clk 0:02:28.6]}
8... Bd7 {[%clk 0:02:54.9]} 9. Bxd7+ {[%clk 0:02:29.4]} 9... Nbxd7 {[%clk
0:02:55.2]} 10. O-O {[%clk 0:02:30.5]} 10... O-O {[%clk 0:02:55.5]} 11. N2f3
{[%clk 0:02:30.9]} 11... Rfd8 {[%clk 0:02:54.8]} 12. Bg5 {[%clk 0:02:26.3]}
12... h6 {[%clk 0:02:54.6]} 13. Bh4 {[%clk 0:02:26.6]} 13... Nc5 {[%clk
0:02:54.2]} 14. Qe2 {[%clk 0:02:18.7]} 14... Qe4 {[%clk 0:02:51]} 15. Rfe1
{[%clk 0:01:43.6]} 15... Qxe2 {[%clk 0:02:47.7]} 16. Rxe2 {[%clk 0:01:44.4]}
16... a6 {[%clk 0:02:42.9]} 17. Ne5 {[%clk 0:01:30.4]} 17... Rd5 {[%clk
0:02:43.4]} 18. f3 {[%clk 0:01:24.9]} 18... Rad8 {[%clk 0:02:42.5]} 19. Rae1
{[%clk 0:01:16.7]} 19... Kf8 {[%clk 0:02:41.7]} 20. Kf1 {[%clk 0:00:48.6]} 20...
Rxe5 {[%clk 0:02:31.8]} 21. Rxe5 {[%clk 0:00:48.9]} 21... Nd3 {[%clk 0:02:32.5]}
22. R5e2 {[%clk 0:00:45.9]} 22... Nxe1 {[%clk 0:02:31.3]} 23. Kxe1 {[%clk
0:00:41.1]} 23... Bc5 {[%clk 0:02:24.3]} 24. Bf2 {[%clk 0:00:40.4]} 24... Be7
{[%clk 0:02:21.7]} 25. Rd2 {[%clk 0:00:34]} 25... Nd5 {[%clk 0:02:22.3]} 26. g3
{[%clk 0:00:31.9]} 26... g5 {[%clk 0:02:19.8]} 27. Ke2 {[%clk 0:00:25.5]} 27...
Rc8 {[%clk 0:02:18.9]} 28. Kd3 {[%clk 0:00:20]} 28... Bf6 {[%clk 0:02:15.3]} 29.
a3 {[%clk 0:00:19.8]} 29... h5 {[%clk 0:02:15.6]} 30. Rc2 {[%clk 0:00:18.1]}
30... Rd8 {[%clk 0:02:14.1]} 31. Ke2 {[%clk 0:00:18.5]} 31... g4 {[%clk
0:02:14.9]} 32. Rd2 {[%clk 0:00:17.1]} 32... Nb6 {[%clk 0:02:12.8]} 33. Nxe6+
{[%clk 0:00:12.9]} 33... fxe6 {[%clk 0:02:13]} 34. Bxb6 {[%clk 0:00:13]} 34...
gxf3+ {[%clk 0:02:13.8]} 35. Kd1 {[%clk 0:00:13.5]} 35... Rxd2+ {[%clk
0:02:04.8]} 36. Kxd2 {[%clk 0:00:14.2]} 36... Bg5+ {[%clk 0:02:03.8]} 37. Ke1
{[%clk 0:00:12.8]} 37... e5 {[%clk 0:02:03.7]} 38. Kf2 {[%clk 0:00:11.6]} 38...
e4 {[%clk 0:02:04.5]} 39. h3 {[%clk 0:00:05.4]} 39... Bc1 {[%clk 0:02:04.1]} 40.
Bd4 {[%clk 0:00:04.3]} 40... Kf7 {[%clk 0:02:02.7]} 41. a4 {[%clk 0:00:03]}
41... Kg6 {[%clk 0:01:50.3]} 42. c4 {[%clk 0:00:03.1]} 42... Kf5 {[%clk
0:01:50.9]} 43. b4 {[%clk 0:00:03.6]} 43... Bg5 {[%clk 0:01:37.9]} 44. b5 {[%clk
0:00:04.3]} 44... Ke6 {[%clk 0:01:37.1]} 45. Bc5 {[%clk 0:00:03.2]} 45... Ke5
{[%clk 0:01:33.5]} 46. Bb6 {[%clk 0:00:03.3]} 46... Bd2 {[%clk 0:01:30.1]} 0-1

[Event "*** Titled Tuesday 3|2 Blitz (Early)"]
[Site "Chess.com"]
[Date "2016.12.06"]
[Round "9"]
[White "Gabrielian_Artur"]
[Black "Keranke"]
[Result "1-0"]
[WhiteElo "2610"]
[BlackElo "2611"]
[TimeControl "180+2"]
[EndTime "13:00:36 PST"]
[Termination "Gabrielian_Artur won by checkmate"]

1. e4 {[%clk 0:03:02]} 1... g6 {[%clk 0:03:01.2]} 2. d4 {[%clk 0:03:02.4]} 2...
Bg7 {[%clk 0:03:02.6]} 3. Nc3 {[%clk 0:03:01.4]} 3... d6 {[%clk 0:03:04]} 4. f4
{[%clk 0:03:01.6]} 4... a6 {[%clk 0:03:05.4]} 5. Nf3 {[%clk 0:03:02.3]} 5... b5
{[%clk 0:03:06.9]} 6. Bd3 {[%clk 0:03:03.5]} 6... Nd7 {[%clk 0:03:07.3]} 7. e5
{[%clk 0:02:39.1]} 7... c5 {[%clk 0:03:02.2]} 8. Be4 {[%clk 0:02:39.9]} 8... Rb8
{[%clk 0:03:03.4]} 9. Be3 {[%clk 0:02:34.8]} 9... b4 {[%clk 0:03:03.8]} 10. Na4
{[%clk 0:02:32.5]} 10... Qc7 {[%clk 0:02:59.7]} 11. c3 {[%clk 0:02:27]} 11...
Bb7 {[%clk 0:02:56.5]} 12. Bxb7 {[%clk 0:02:19]} 12... Rxb7 {[%clk 0:02:54.1]}
13. cxb4 {[%clk 0:01:47.9]} 13... cxb4 {[%clk 0:02:35]} 14. Rc1 {[%clk
0:01:47.8]} 14... Qd8 {[%clk 0:02:35.9]} 15. e6 {[%clk 0:01:38.1]} 15... fxe6
{[%clk 0:02:36.1]} 16. Ng5 {[%clk 0:01:33]} 16... Nf8 {[%clk 0:02:26]} 17. Qf3
{[%clk 0:01:32]} 17... Rb8 {[%clk 0:02:12.8]} 18. Qc6+ {[%clk 0:01:25.5]} 18...
Qd7 {[%clk 0:02:13.8]} 19. Qxa6 {[%clk 0:01:25.8]} 19... h6 {[%clk 0:02:14.1]}
20. Nb6 {[%clk 0:01:13.5]} 20... Qd8 {[%clk 0:02:09.7]} 21. Qa4+ {[%clk
0:00:58.4]} 21... Nd7 {[%clk 0:02:10.1]} 22. Nxe6 {[%clk 0:00:53.3]} 22... Qxb6
{[%clk 0:02:10.8]} 23. Nxg7+ {[%clk 0:00:51.8]} 23... Kf7 {[%clk 0:02:12.2]} 24.
Qxd7 {[%clk 0:00:48.4]} 24... Kxg7 {[%clk 0:02:11.1]} 25. Qe6 {[%clk 0:00:45.3]}
25... Qb5 {[%clk 0:01:39.6]} 26. d5 {[%clk 0:00:45.2]} 26... Re8 {[%clk
0:01:22.2]} 27. Bd4+ {[%clk 0:00:37.1]} 27... Nf6 {[%clk 0:01:15.3]} 28. Rc7
{[%clk 0:00:34.1]} 28... Rhf8 {[%clk 0:00:32.4]} 29. Rxe7+ {[%clk 0:00:32.5]}
29... Rxe7 {[%clk 0:00:33.7]} 30. Qxe7+ {[%clk 0:00:33.4]} 30... Kg8 {[%clk
0:00:35.4]} 31. Qe6+ {[%clk 0:00:25.6]} 31... Kh7 {[%clk 0:00:32.5]} 32. Kd2
{[%clk 0:00:22.4]} 32... Nxd5 {[%clk 0:00:16.8]} 33. Re1 {[%clk 0:00:16.9]}
33... Rxf4 {[%clk 0:00:18]} 34. Re4 {[%clk 0:00:14.9]} 34... Rxe4 {[%clk
0:00:16.8]} 35. Qf7# {[%clk 0:00:16]} 1-0

[Event "*** Titled Tuesday 3|2 Blitz (Early)"]
[Site "Chess.com"]
[Date "2016.12.06"]
[Round "9"]
[White "Dlugy"]
[Black "Zaven_ChessMood"]
[Result "1-0"]
[WhiteElo "2657"]
[BlackElo "2807"]
[TimeControl "180+2"]
[EndTime "13:01:11 PST"]
[Termination "Dlugy won by resignation"]

1. d4 {[%clk 0:03:02]} 1... Nf6 {[%clk 0:03:01]} 2. Bf4 {[%clk 0:03:02.9]} 2...
g6 {[%clk 0:03:01.3]} 3. Nc3 {[%clk 0:03:03.6]} 3... Bg7 {[%clk 0:03:02.9]} 4.
Qd2 {[%clk 0:03:04.5]} 4... d5 {[%clk 0:03:00.4]} 5. Bh6 {[%clk 0:03:05.4]} 5...
Bxh6 {[%clk 0:02:59.7]} 6. Qxh6 {[%clk 0:03:06.2]} 6... c5 {[%clk 0:03:00.2]} 7.
e3 {[%clk 0:03:04.2]} 7... Nc6 {[%clk 0:03:00.5]} 8. O-O-O {[%clk 0:03:05.3]}
8... cxd4 {[%clk 0:02:57.2]} 9. exd4 {[%clk 0:03:06.3]} 9... Bf5 {[%clk
0:02:54.3]} 10. Nf3 {[%clk 0:02:58.9]} 10... Qa5 {[%clk 0:02:45.4]} 11. Bb5
{[%clk 0:02:49]} 11... Ne4 {[%clk 0:02:41.2]} 12. Bxc6+ {[%clk 0:01:36.8]} 12...
bxc6 {[%clk 0:02:41.3]} 13. Nxe4 {[%clk 0:01:34.8]} 13... dxe4 {[%clk
0:02:38.9]} 14. Ne5 {[%clk 0:01:33.8]} 14... Qxa2 {[%clk 0:02:34.8]} 15. Qe3
{[%clk 0:01:30]} 15... O-O {[%clk 0:02:31.4]} 16. Nxc6 {[%clk 0:01:26.7]} 16...
Rfe8 {[%clk 0:02:28.9]} 17. Qa3 {[%clk 0:01:23.3]} 17... Qe6 {[%clk 0:02:22]}
18. d5 {[%clk 0:01:21.3]} 18... Qf6 {[%clk 0:02:23.1]} 19. Qc3 {[%clk
0:01:18.9]} 19... Qd6 {[%clk 0:02:22.8]} 20. Qg3 {[%clk 0:01:17]} 20... Qd7
{[%clk 0:02:19.5]} 21. Qb3 {[%clk 0:01:13]} 21... Rac8 {[%clk 0:02:16.6]} 22.
Rhe1 {[%clk 0:01:08.7]} 22... a5 {[%clk 0:02:12.5]} 23. Rd2 {[%clk 0:01:05.6]}
23... a4 {[%clk 0:02:11.3]} 24. Qb4 {[%clk 0:01:02.8]} 24... a3 {[%clk 0:02:00]}
25. bxa3 {[%clk 0:00:59.3]} 25... h5 {[%clk 0:01:56.6]} 26. h3 {[%clk
0:00:56.8]} 26... Ra8 {[%clk 0:01:52.6]} 27. g4 {[%clk 0:00:55]} 27... hxg4
{[%clk 0:01:52.8]} 28. hxg4 {[%clk 0:00:55.6]} 28... Bxg4 {[%clk 0:01:52.1]} 29.
Rxe4 {[%clk 0:00:56]} 29... Bh5 {[%clk 0:01:33.4]} 30. Rxe7 {[%clk 0:00:56.3]}
30... Rxe7 {[%clk 0:01:20.3]} 31. Nxe7+ {[%clk 0:00:56.3]} 31... Kh7 {[%clk
0:01:20.5]} 32. Rd3 {[%clk 0:00:55]} 32... Ra4 {[%clk 0:01:05.9]} 33. Qb3 {[%clk
0:00:52.4]} 33... Ra8 {[%clk 0:00:58.1]} 34. d6 {[%clk 0:00:49.1]} 34... Rf8
{[%clk 0:00:55.6]} 35. Qd5 {[%clk 0:00:50]} 35... Kg7 {[%clk 0:00:52.6]} 36. c4
{[%clk 0:00:50.4]} 36... Rb8 {[%clk 0:00:48]} 37. Nc6 {[%clk 0:00:46.6]} 37...
Rc8 {[%clk 0:00:34.6]} 38. Ne5 {[%clk 0:00:44]} 38... Qf5 {[%clk 0:00:31.5]} 39.
d7 {[%clk 0:00:45.3]} 39... Rf8 {[%clk 0:00:26.1]} 40. Qd4 {[%clk 0:00:43.8]}
40... Kh7 {[%clk 0:00:21.9]} 41. Nc6 {[%clk 0:00:44.9]} 41... Qg5+ {[%clk
0:00:17.6]} 42. f4 {[%clk 0:00:39.2]} 42... Qh4 {[%clk 0:00:13.1]} 43. d8=Q
{[%clk 0:00:37.6]} 43... Rxd8 {[%clk 0:00:13.1]} 44. Nxd8 {[%clk 0:00:38.7]}
44... Qe1+ {[%clk 0:00:13.4]} 45. Kb2 {[%clk 0:00:39.8]} 45... Qe2+ {[%clk
0:00:13.2]} 46. Rd2 {[%clk 0:00:41]} 46... Qe7 {[%clk 0:00:14.2]} 47. Nc6 {[%clk
0:00:41.7]} 47... Qb7+ {[%clk 0:00:15.3]} 48. Nb4 {[%clk 0:00:42.9]} 48... Qf3
{[%clk 0:00:16]} 49. c5 {[%clk 0:00:43.9]} 49... g5 {[%clk 0:00:16.6]} 50. Qd3+
{[%clk 0:00:44.5]} 1-0

[Event "*** Titled Tuesday 3|2 Blitz (Early)"]
[Site "Chess.com"]
[Date "2016.12.06"]
[Round "9"]
[White "pastouche06"]
[Black "AmazingAtlas"]
[Result "1-0"]
[WhiteElo "2312"]
[BlackElo "2294"]
[TimeControl "180+2"]
[EndTime "13:01:34 PST"]
[Termination "pastouche06 won by resignation"]

1. d4 {[%clk 0:03:02]} 1... Nf6 {[%clk 0:02:56.6]} 2. c4 {[%clk 0:03:02.9]} 2...
c5 {[%clk 0:02:56.1]} 3. d5 {[%clk 0:03:03.4]} 3... b5 {[%clk 0:02:54.4]} 4.
cxb5 {[%clk 0:03:05.3]} 4... a6 {[%clk 0:02:54.8]} 5. f3 {[%clk 0:03:06.5]} 5...
e6 {[%clk 0:02:31.8]} 6. e4 {[%clk 0:03:07.1]} 6... exd5 {[%clk 0:02:29]} 7. e5
{[%clk 0:03:08.3]} 7... Qe7 {[%clk 0:02:29.5]} 8. Qe2 {[%clk 0:03:09.3]} 8...
Ng8 {[%clk 0:02:29.2]} 9. Nh3 {[%clk 0:03:09.4]} 9... Bb7 {[%clk 0:02:29.2]} 10.
Nf4 {[%clk 0:02:51.5]} 10... Qd8 {[%clk 0:02:24]} 11. Nc3 {[%clk 0:02:44.6]}
11... Ne7 {[%clk 0:02:21.6]} 12. a4 {[%clk 0:02:21.4]} 12... Qc7 {[%clk
0:02:10.7]} 13. a5 {[%clk 0:02:13.9]} 13... g6 {[%clk 0:01:38.7]} 14. b6 {[%clk
0:02:13.8]} 14... Qc6 {[%clk 0:01:37.8]} 15. h4 {[%clk 0:02:02]} 15... h5 {[%clk
0:01:18.6]} 16. g3 {[%clk 0:02:00.2]} 16... Bg7 {[%clk 0:01:18.4]} 17. Bh3
{[%clk 0:01:54.7]} 17... d4 {[%clk 0:01:15.7]} 18. Ne4 {[%clk 0:01:55.3]} 18...
Bxe5 {[%clk 0:01:17.3]} 19. O-O {[%clk 0:01:55.8]} 19... O-O {[%clk 0:01:05.2]}
20. Nd3 {[%clk 0:01:37.7]} 20... d6 {[%clk 0:00:29.4]} 21. Bg2 {[%clk
0:01:38.7]} 21... Bg7 {[%clk 0:00:23.7]} 22. f4 {[%clk 0:01:38.4]} 22... Rd8
{[%clk 0:00:21.1]} 23. Nf6+ {[%clk 0:01:33.6]} 23... Bxf6 {[%clk 0:00:20.5]} 24.
Bxc6 {[%clk 0:01:35.1]} 24... Nbxc6 {[%clk 0:00:22.1]} 25. f5 {[%clk 0:01:29.4]}
25... c4 {[%clk 0:00:20.6]} 26. fxg6 {[%clk 0:01:27]} 26... cxd3 {[%clk
0:00:18]} 27. gxf7+ {[%clk 0:01:27]} 27... Kxf7 {[%clk 0:00:19.1]} 28. Qxh5+
{[%clk 0:01:27.7]} 28... Kg7 {[%clk 0:00:19.1]} 29. Bh6+ {[%clk 0:01:25]} 29...
Kg8 {[%clk 0:00:18.3]} 30. Rxf6 {[%clk 0:01:25.5]} 30... Ne5 {[%clk 0:00:19.1]}
31. Raf1 {[%clk 0:01:23.8]} 31... Be4 {[%clk 0:00:10.7]} 32. Rf7 {[%clk
0:01:21.6]} 32... Bg6 {[%clk 0:00:05.9]} 33. Rg7+ {[%clk 0:01:19]} 33... Kh8
{[%clk 0:00:07.1]} 34. Rxg6 {[%clk 0:01:11.2]} 34... N7xg6 {[%clk 0:00:07.5]}
35. Bg5+ {[%clk 0:01:10.3]} 35... Kg8 {[%clk 0:00:07.4]} 36. Bxd8 {[%clk
0:00:57.8]} 36... Rxd8 {[%clk 0:00:09.3]} 37. Rf6 {[%clk 0:00:49.4]} 37... Kg7
{[%clk 0:00:08.8]} 38. Rxg6+ {[%clk 0:00:43.7]} 38... Nxg6 {[%clk 0:00:09.2]}
39. Qd5 {[%clk 0:00:45.4]} 39... Ne5 {[%clk 0:00:06.5]} 40. Qxd4 {[%clk
0:00:46.7]} 40... Rc8 {[%clk 0:00:05.5]} 41. b7 {[%clk 0:00:46]} 41... Rb8
{[%clk 0:00:06.4]} 42. Qxd6 {[%clk 0:00:45.4]} 42... Kf7 {[%clk 0:00:04.9]} 43.
Qxe5 {[%clk 0:00:43.8]} 43... d2 {[%clk 0:00:06]} 44. Qd5+ {[%clk 0:00:44]}
44... Ke7 {[%clk 0:00:06.7]} 45. Qxd2 {[%clk 0:00:45.9]} 45... Rxb7 {[%clk
0:00:08.1]} 46. Qg5+ {[%clk 0:00:46.5]} 46... Kd7 {[%clk 0:00:08.9]} 47. Qd5+
{[%clk 0:00:47]} 47... Kc7 {[%clk 0:00:10.1]} 48. Qxb7+ {[%clk 0:00:48.9]} 48...
Kxb7 {[%clk 0:00:12]} 49. h5 {[%clk 0:00:50.6]} 1-0

[Event "*** Titled Tuesday 3|2 Blitz (Early)"]
[Site "Chess.com"]
[Date "2016.12.06"]
[Round "9"]
[White "platy3"]
[Black "Noukii"]
[Result "1-0"]
[WhiteElo "2706"]
[BlackElo "2663"]
[TimeControl "180+2"]
[EndTime "13:01:48 PST"]
[Termination "platy3 won by checkmate"]

1. e4 {[%clk 0:03:02]} 1... e5 {[%clk 0:03:01.4]} 2. Nf3 {[%clk 0:03:02.2]} 2...
Nc6 {[%clk 0:03:02.9]} 3. Bb5 {[%clk 0:03:01.3]} 3... a6 {[%clk 0:03:03.5]} 4.
Ba4 {[%clk 0:03:02.8]} 4... Nf6 {[%clk 0:03:05]} 5. O-O {[%clk 0:03:04.5]} 5...
Be7 {[%clk 0:03:06.6]} 6. Re1 {[%clk 0:03:06.1]} 6... b5 {[%clk 0:03:08.3]} 7.
Bb3 {[%clk 0:03:07.7]} 7... d6 {[%clk 0:03:10]} 8. c3 {[%clk 0:03:09.3]} 8...
O-O {[%clk 0:03:11.7]} 9. h3 {[%clk 0:03:10.9]} 9... Na5 {[%clk 0:03:13]} 10.
Bc2 {[%clk 0:03:12.5]} 10... d5 {[%clk 0:03:14.5]} 11. exd5 {[%clk 0:03:11.8]}
11... e4 {[%clk 0:03:15.5]} 12. Bxe4 {[%clk 0:03:13]} 12... Nxe4 {[%clk
0:03:17.1]} 13. Rxe4 {[%clk 0:03:14.8]} 13... Bb7 {[%clk 0:03:18.8]} 14. d4
{[%clk 0:03:16.2]} 14... Re8 {[%clk 0:03:20.3]} 15. Re1 {[%clk 0:03:17.5]} 15...
Nc4 {[%clk 0:03:19.7]} 16. Qd3 {[%clk 0:02:54.1]} 16... Qxd5 {[%clk 0:03:05.2]}
17. b3 {[%clk 0:02:54.7]} 17... Nb6 {[%clk 0:03:06.1]} 18. Ba3 {[%clk
0:02:53.5]} 18... Bxa3 {[%clk 0:01:41.5]} 19. Nxa3 {[%clk 0:02:55.4]} 19... c5
{[%clk 0:01:42.7]} 20. c4 {[%clk 0:02:36.5]} 20... Qd6 {[%clk 0:01:43]} 21. d5
{[%clk 0:02:36.9]} 21... Nd7 {[%clk 0:01:39.2]} 22. Nc2 {[%clk 0:02:34.8]} 22...
Nf6 {[%clk 0:01:37.1]} 23. Ne3 {[%clk 0:02:34.5]} 23... g6 {[%clk 0:01:38]} 24.
a4 {[%clk 0:02:31]} 24... b4 {[%clk 0:01:37.4]} 25. Re2 {[%clk 0:02:28.6]} 25...
Ne4 {[%clk 0:01:32.7]} 26. Ng4 {[%clk 0:02:09.8]} 26... f5 {[%clk 0:01:26.3]}
27. Ngh2 {[%clk 0:02:05.8]} 27... Nc3 {[%clk 0:01:21.6]} 28. Rxe8+ {[%clk
0:01:56.7]} 28... Rxe8 {[%clk 0:01:23.5]} 29. Re1 {[%clk 0:01:58.2]} 29... Rxe1+
{[%clk 0:01:24.5]} 30. Nxe1 {[%clk 0:02:00.1]} 30... f4 {[%clk 0:01:14.1]} 31.
Ng4 {[%clk 0:01:55]} 31... Bc8 {[%clk 0:01:15.1]} 32. Nf3 {[%clk 0:01:56.3]}
32... Kg7 {[%clk 0:01:13.1]} 33. Qd2 {[%clk 0:01:48.2]} 33... Bf5 {[%clk
0:01:05.6]} 34. Nge5 {[%clk 0:01:47.7]} 34... g5 {[%clk 0:00:59.1]} 35. Nc6
{[%clk 0:01:41.8]} 35... h6 {[%clk 0:00:53.6]} 36. Qe1 {[%clk 0:01:35.7]} 36...
Be4 {[%clk 0:00:51.9]} 37. Nd2 {[%clk 0:01:26.5]} 37... Qg6 {[%clk 0:00:50.6]}
38. Nd8 {[%clk 0:01:20.7]} 38... Bf5 {[%clk 0:00:44.2]} 39. Qe7+ {[%clk
0:01:16.3]} 39... Kg8 {[%clk 0:00:44.3]} 40. Ne6 {[%clk 0:01:00.4]} 40... Qf7
{[%clk 0:00:42.5]} 41. Qd8+ {[%clk 0:00:51.1]} 41... Kh7 {[%clk 0:00:42.4]} 42.
Nxc5 {[%clk 0:00:52]} 42... Ne2+ {[%clk 0:00:37.8]} 43. Kh2 {[%clk 0:00:52.5]}
43... Nd4 {[%clk 0:00:38.9]} 44. Nce4 {[%clk 0:00:45.9]} 44... Bxe4 {[%clk
0:00:29.4]} 45. Nxe4 {[%clk 0:00:46.7]} 45... Qf5 {[%clk 0:00:31]} 46. Qe7+
{[%clk 0:00:41.6]} 46... Kg6 {[%clk 0:00:29.8]} 47. Nd6 {[%clk 0:00:42.9]} 47...
Qf6 {[%clk 0:00:22.3]} 48. Qe4+ {[%clk 0:00:41.9]} 48... Kh5 {[%clk 0:00:20.1]}
49. Ne8 {[%clk 0:00:40]} 49... Qh8 {[%clk 0:00:18.3]} 50. g4+ {[%clk 0:00:33.5]}
50... fxg3+ {[%clk 0:00:12.9]} 51. fxg3 {[%clk 0:00:35.4]} 51... Nxb3 {[%clk
0:00:07.5]} 52. g4+ {[%clk 0:00:33.4]} 52... Kh4 {[%clk 0:00:08.5]} 53. Qe1#
{[%clk 0:00:34.9]} 1-0

[Event "*** Titled Tuesday 3|2 Blitz (Early)"]
[Site "Chess.com"]
[Date "2016.12.06"]
[Round "9"]
[White "renanreis"]
[Black "SCIM"]
[Result "0-1"]
[WhiteElo "1985"]
[BlackElo "2274"]
[TimeControl "180+2"]
[EndTime "13:02:00 PST"]
[Termination "SCIM won by resignation"]

1. d4 {[%clk 0:02:58.1]} 1... Nf6 {[%clk 0:02:53.5]} 2. Bf4 {[%clk 0:02:55.9]}
2... d5 {[%clk 0:02:41.3]} 3. e3 {[%clk 0:02:48.6]} 3... c5 {[%clk 0:02:35.6]}
4. c3 {[%clk 0:02:46.4]} 4... Nc6 {[%clk 0:02:11.2]} 5. Nf3 {[%clk 0:02:39.1]}
5... e6 {[%clk 0:01:57]} 6. Nbd2 {[%clk 0:02:23.6]} 6... Bd6 {[%clk 0:01:54.2]}
7. Bg3 {[%clk 0:02:12.4]} 7... O-O {[%clk 0:01:41.6]} 8. Bd3 {[%clk 0:02:11]}
8... Re8 {[%clk 0:01:40.2]} 9. Ne5 {[%clk 0:02:10.7]} 9... Bxe5 {[%clk
0:01:05.4]} 10. dxe5 {[%clk 0:02:12.6]} 10... Nd7 {[%clk 0:01:06.5]} 11. f4
{[%clk 0:02:11.6]} 11... Qb6 {[%clk 0:01:02.5]} 12. O-O {[%clk 0:02:11]} 12...
c4 {[%clk 0:01:00.8]} 13. Bc2 {[%clk 0:02:11.8]} 13... Qxe3+ {[%clk 0:01:02]}
14. Kh1 {[%clk 0:02:12.4]} 14... f5 {[%clk 0:00:58.3]} 15. exf6 {[%clk
0:01:41.3]} 15... Nxf6 {[%clk 0:00:53.4]} 16. Bf2 {[%clk 0:01:38]} 16... Qxf4
{[%clk 0:00:52.6]} 17. Bd4 {[%clk 0:01:38.4]} 17... Qh6 {[%clk 0:00:52.2]} 18.
Bxf6 {[%clk 0:01:35.3]} 18... gxf6 {[%clk 0:00:52.2]} 19. Rf3 {[%clk 0:01:36.4]}
19... e5 {[%clk 0:00:50.3]} 20. Qf1 {[%clk 0:00:58.1]} 20... Rf8 {[%clk
0:00:44.4]} 21. Qf2 {[%clk 0:00:49.7]} 21... Be6 {[%clk 0:00:43.1]} 22. Rf1
{[%clk 0:00:49.8]} 22... e4 {[%clk 0:00:42.4]} 23. Rxf6 {[%clk 0:00:45]} 23...
Rxf6 {[%clk 0:00:42.7]} 24. Qxf6 {[%clk 0:00:40]} 24... Qxf6 {[%clk 0:00:44.2]}
25. Rxf6 {[%clk 0:00:41.9]} 25... Bf7 {[%clk 0:00:45.3]} 26. Nf1 {[%clk
0:00:40.8]} 26... Kg7 {[%clk 0:00:42.6]} 27. Rf2 {[%clk 0:00:37.8]} 27... Rf8
{[%clk 0:00:42.2]} 28. Ne3 {[%clk 0:00:38.1]} 28... Be6 {[%clk 0:00:43.6]} 29.
Kg1 {[%clk 0:00:38.1]} 29... Rxf2 {[%clk 0:00:42.3]} 30. Kxf2 {[%clk 0:00:40]}
30... Ne5 {[%clk 0:00:43.4]} 31. Kg3 {[%clk 0:00:39.7]} 31... Kf6 {[%clk
0:00:43.6]} 32. Kf4 {[%clk 0:00:40]} 32... Ng6+ {[%clk 0:00:44.1]} 33. Kg3
{[%clk 0:00:39.7]} 33... Ke5 {[%clk 0:00:44.8]} 34. b3 {[%clk 0:00:36.7]} 34...
b5 {[%clk 0:00:44.6]} 35. bxc4 {[%clk 0:00:36.9]} 35... bxc4 {[%clk 0:00:45]}
36. h4 {[%clk 0:00:31.2]} 36... Nf4 {[%clk 0:00:44]} 37. Kf2 {[%clk 0:00:22.3]}
37... Nd3+ {[%clk 0:00:44.5]} 38. Bxd3 {[%clk 0:00:20.2]} 38... cxd3 {[%clk
0:00:40.6]} 39. Ke1 {[%clk 0:00:19.6]} 39... d4 {[%clk 0:00:40.2]} 40. cxd4+
{[%clk 0:00:20.3]} 40... Kxd4 {[%clk 0:00:41.6]} 41. Kd2 {[%clk 0:00:22.2]}
41... Bxa2 {[%clk 0:00:42.1]} 42. Nf5+ {[%clk 0:00:23.2]} 42... Ke5 {[%clk
0:00:42.6]} 43. Ne7 {[%clk 0:00:21.3]} 43... Bd5 {[%clk 0:00:39.3]} 44. Nc8
{[%clk 0:00:19.2]} 44... a5 {[%clk 0:00:39.3]} 45. Nb6 {[%clk 0:00:18.6]} 45...
Kd4 {[%clk 0:00:40.2]} 46. Nxd5 {[%clk 0:00:09.1]} 46... Kxd5 {[%clk 0:00:40.4]}
47. Kc3 {[%clk 0:00:07.6]} 47... Ke5 {[%clk 0:00:39.4]} 48. g3 {[%clk
0:00:05.1]} 48... h5 {[%clk 0:00:39.2]} 0-1